bitfinex-derivatives/quotes_BNBF0:USTF0_20251027
["timestamp","ask_amount","ask_price","bid_price","bid_amount"]
[1761540534368,0.15185797,1146.8,1145.0,0.55744534]
[1761540534574,0.15185797,1146.8,1145.1,0.55744534]
[1761540534774,0.15185797,1146.8,1145.2,0.55744534]
[1761540534973,0.15185797,1146.8,1145.3,0.55828144]
[1761540535172,0.15185797,1146.8,1144.9,1.666]
[1761540535375,0.15185797,1146.8,1145.0,0.55823584]
[1761540535574,0.15185797,1146.8,1145.1,0.55823584]
[1761540535778,0.15185797,1146.8,1145.2,0.55823584]
[1761540535973,0.15185797,1146.8,1144.9,1.666]
[1761540536173,0.15185797,1146.8,1145.0,0.55824865]
[1761540536373,0.15185797,1146.8,1145.1,0.55824865]
[1761540536576,0.15185797,1146.8,1145.2,0.55824865]
[1761540536774,0.15185797,1146.8,1144.9,1.666]
[1761540536977,0.15185797,1146.8,1145.0,0.55819546]
[1761540537175,0.15185797,1146.8,1145.1,0.55819546]
[1761540537375,0.15185797,1146.8,1145.2,0.55819546]
[1761540537678,0.15185797,1146.8,1144.9,1.666]
[1761540537876,0.15185797,1146.8,1145.0,0.55815437]
[1761540538178,0.15185797,1146.8,1145.1,0.55815437]
[1761540538478,0.15185797,1146.8,1145.2,0.55815437]
[1761540538678,0.15185797,1146.8,1144.9,1.666]
[1761540538874,0.15185797,1146.8,1145.0,0.55812021]
[1761540539074,0.15185797,1146.8,1145.1,0.55812021]
[1761540539278,0.15185797,1146.8,1145.2,0.55812021]
[1761540539474,0.15185797,1146.8,1144.9,1.666]
[1761540539774,0.15185797,1146.8,1145.0,0.5580984]
[1761540539974,0.15185797,1146.8,1144.9,1.666]
[1761540539975,0.15185797,1146.8,1145.1,0.5580984]
[1761540540178,0.15185797,1146.8,1145.2,0.5580984]
[1761540540379,0.15185797,1146.8,1145.3,0.5580984]
[1761540540579,0.15185797,1146.8,1144.9,2.31762537]
[1761540540778,0.15185797,1146.8,1145.0,0.5580984]
[1761540540977,0.15185797,1146.8,1145.1,0.5580984]
[1761540541176,0.15185797,1146.8,1145.2,0.5580984]
[1761540541475,0.15185797,1146.8,1145.3,0.5580984]
[1761540541678,0.15185797,1146.8,1145.4,0.5580984]
[1761540541873,0.15185797,1146.8,1145.0,0.65162537]
[1761540542077,0.15185797,1146.8,1145.1,0.5580584]
[1761540542380,0.15185797,1146.8,1145.2,0.5580584]
[1761540542580,0.15185797,1146.8,1145.3,0.5580584]
[1761540542776,0.15185797,1146.8,1145.0,0.65162537]
[1761540542982,0.15185797,1146.8,1145.1,0.55809754]
[1761540543180,0.15185797,1146.8,1145.2,0.55809754]
[1761540543480,0.15185797,1146.8,1145.3,0.55809754]
[1761540543780,0.15185797,1146.8,1144.9,1.666]
[1761540543781,0.15185797,1146.8,1145.4,0.55811131]
[1761540543981,0.15185797,1146.8,1145.1,0.65162537]
[1761540544177,0.15185797,1146.8,1145.2,0.5581111]
[1761540544378,0.15185797,1146.8,1145.3,0.5581111]
[1761540544578,0.15185797,1146.8,1145.4,0.5581111]
[1761540544779,0.15185797,1146.8,1145.1,0.65162537]
[1761540544978,0.15185797,1146.8,1145.2,0.55816894]
[1761540545179,2.15100723,1147.3,1145.3,0.55816894]
[1761540545382,0.15189244,1146.9,1145.4,0.55816894]
[1761540545587,0.15189244,1146.9,1145.5,0.55816894]
[1761540545782,0.15189244,1146.9,1145.0,0.65162537]
[1761540546081,0.15189244,1146.9,1145.1,0.5582314]
[1761540546280,0.15189244,1146.9,1145.2,0.5582314]
[1761540546483,0.15189244,1146.9,1145.3,0.5582314]
[1761540546684,0.15189244,1146.9,1145.4,0.5582314]
[1761540546884,0.15189244,1146.9,1145.0,0.65162537]
[1761540547089,0.15189244,1146.9,1145.1,0.55828951]
[1761540547279,0.15189244,1146.9,1145.2,0.55828951]
[1761540547480,0.15189244,1146.9,1145.3,0.55828951]
[1761540547784,0.15189244,1146.9,1145.4,0.55828951]
[1761540547984,0.15189244,1146.9,1145.5,0.55828951]
[1761540548182,0.15189244,1146.9,1145.0,0.65162537]
[1761540548383,0.15189244,1146.9,1145.1,0.55842355]
[1761540548582,0.15189244,1146.9,1145.2,0.55842355]
[1761540548780,0.15189244,1146.9,1145.3,0.55842355]
[1761540548983,0.15189244,1146.9,1145.4,0.55842355]
[1761540549181,0.15189244,1146.9,1145.5,0.55842355]
[1761540549385,0.15189244,1146.9,1145.0,0.65162537]
[1761540549586,0.15189244,1146.9,1145.1,0.5585002]
[1761540549781,0.15189244,1146.9,1145.2,0.5585002]
[1761540549986,0.15189244,1146.9,1145.3,0.5585002]
[1761540550185,0.15189244,1146.9,1145.4,0.5585002]
[1761540550386,0.15189244,1146.9,1145.5,0.5585002]
[1761540550584,0.15189244,1146.9,1145.0,0.65162537]
[1761540550784,0.15189244,1146.9,1145.1,0.55858354]
[1761540550986,0.15189244,1146.9,1145.2,0.55858354]
[1761540551187,0.15189244,1146.9,1145.3,0.55858354]
[1761540551386,0.15189244,1146.9,1145.4,0.55858354]
[1761540551686,0.15189244,1146.9,1145.5,0.55858354]
[1761540551887,0.15189244,1146.9,1145.0,0.65162537]
[1761540552183,0.15189244,1146.9,1145.1,0.55867231]
[1761540552487,0.15189244,1146.9,1145.2,0.55867231]
[1761540552683,0.15189244,1146.9,1145.3,0.55867231]
[1761540552981,0.15189244,1146.9,1145.4,0.55867231]
[1761540553184,0.15189244,1146.9,1145.5,0.55867231]
[1761540553383,2.15100723,1147.9,1145.0,0.65162537]
[1761540553586,2.15100723,1147.9,1145.1,0.55866789]
[1761540553787,2.15100723,1148.1,1145.2,0.55866789]
[1761540553984,0.15187719,1147.2,1145.3,0.55866789]
[1761540554286,2.15100723,1148.4,1145.4,0.55866789]
[1761540554486,0.15186261,1146.9,1145.5,0.55866789]
[1761540554687,2.15100723,1148.4,1145.6,0.55866789]
[1761540554886,2.15100723,1148.4,1145.0,0.65162537]
[1761540555086,0.15184604,1146.9,1145.1,0.55863511]
[1761540555391,2.15100723,1148.5,1145.2,0.55863511]
[1761540555587,0.15185929,1146.9,1145.3,0.55863511]
[1761540555783,0.15185929,1146.9,1145.4,0.55863511]
[1761540555983,2.15100723,1148.5,1145.5,0.55863511]
[1761540556187,0.15184935,1146.9,1145.6,0.55863511]
[1761540556382,2.15100723,1148.5,1145.0,0.65162537]
[1761540556583,2.15100723,1148.5,1145.1,0.55864811]
[1761540556787,0.15183478,1147.0,1145.2,0.55864811]
[1761540556984,2.15100723,1148.3,1145.3,0.55864811]
[1761540557188,0.15185466,1147.0,1145.4,0.55864811]
[1761540557488,2.15100723,1148.4,1145.5,0.55864811]
[1761540557688,2.15100723,1148.4,1145.6,0.55864811]
[1761540557888,0.15184803,1147.0,1145.0,0.65162537]
[1761540558187,2.15100723,1148.4,1145.1,0.55865336]
[1761540558388,0.15185797,1147.0,1145.2,0.55865336]
[1761540558588,2.15100723,1148.3,1145.3,0.55865336]
[1761540558783,2.15100723,1148.3,1145.4,0.55865336]
[1761540558986,0.15185466,1147.0,1145.5,0.55865336]
[1761540559188,2.15100723,1148.4,1145.6,0.55865336]
[1761540559489,0.15183147,1147.2,1145.7,0.55863437]
[1761540559685,2.15100723,1148.4,1145.1,0.65162537]
[1761540559890,2.15100723,1148.4,1145.2,0.55863135]
[1761540560189,0.15182418,1147.2,1145.3,0.55863135]
[1761540560386,2.15100723,1148.2,1145.4,0.55863135]
[1761540560595,2.15100723,1147.6,1145.5,0.55863135]
[1761540560795,2.15100723,1147.6,1145.6,0.55863135]
[1761540560995,2.15100723,1147.6,1145.3,0.65162537]
[1761540561195,2.15100723,1147.6,1145.4,0.55861294]
[1761540561392,2.15100723,1147.6,1145.5,0.55861294]
[1761540561596,2.15100723,1147.6,1145.6,0.55861294]
[1761540561793,2.15100723,1147.6,1145.3,0.65162537]
[1761540561996,2.15100723,1147.5,1145.4,0.55858921]
[1761540562195,2.15100723,1147.5,1145.5,0.55858921]
[1761540562491,2.15100723,1147.5,1145.6,0.55858921]
[1761540562696,2.15100723,1147.5,1145.7,0.55858921]
[1761540562993,2.15100723,1147.6,1145.3,0.65162537]
[1761540563192,2.15100723,1147.6,1145.4,0.55854339]
[1761540563393,2.15100723,1147.6,1145.5,0.55854339]
[1761540563695,2.15100723,1147.6,1145.6,0.55854339]
[1761540563894,2.15100723,1147.6,1145.7,0.55854339]
[1761540564096,2.30284466,1147.7,1145.3,0.65162537]
[1761540564294,2.30284466,1147.7,1145.4,0.55848791]
[1761540564598,2.30284466,1147.7,1145.5,0.55848791]
[1761540564798,2.30284466,1147.7,1145.6,0.55848791]
[1761540565098,2.30284466,1147.7,1145.7,0.55848791]
[1761540565300,2.30284466,1147.7,1145.8,0.5583865]
[1761540565595,0.15183743,1147.7,1145.2,0.65162537]
[1761540565897,0.15183743,1147.7,1145.3,0.55839179]
[1761540566097,0.15183743,1147.7,1145.4,0.55839179]
[1761540566393,0.15183743,1147.7,1145.5,0.55839179]
[1761540566597,0.15183743,1147.7,1145.6,0.55839179]
[1761540566797,0.15183743,1147.7,1145.7,0.55839179]
[1761540566994,0.15183743,1147.7,1145.8,0.55839179]
[1761540567193,0.15183743,1147.7,1145.2,0.65162537]
[1761540567395,0.15183743,1147.7,1145.3,0.55832163]
[1761540567697,0.15183743,1147.7,1145.4,0.55832163]
[1761540567897,0.15183743,1147.7,1145.5,0.55832163]
[1761540568095,0.15183743,1147.7,1145.6,2.05432163]
[1761540568294,0.15183743,1147.7,1145.7,0.55832163]
[1761540568498,0.15183743,1147.7,1145.8,0.55832163]
[1761540568695,0.15183743,1147.7,1145.6,1.496]
[1761540568896,0.15183743,1147.7,1145.7,0.55828373]
[1761540569095,0.15183743,1147.7,1145.8,0.55828373]
[1761540569296,0.15183743,1147.7,1145.6,1.496]
[1761540569499,0.15183743,1147.7,1145.7,0.5582479]
[1761540569696,0.15183743,1147.7,1145.8,0.5582479]
[1761540569903,0.15183743,1147.7,1145.6,1.496]
[1761540570098,0.15183743,1147.7,1145.7,0.5582479]
[1761540570298,0.15183743,1147.7,1145.6,1.496]
[1761540570600,0.15183743,1147.7,1145.7,0.55821941]
[1761540570802,0.15183743,1147.7,1145.6,1.496]
[1761540577506,2.15100723,1147.5,1145.6,1.496]
[1761540580106,2.15100723,1147.6,1145.6,1.496]
[1761540584411,2.30284466,1147.7,1145.6,1.496]
[1761540590714,2.15100723,1147.6,1145.6,1.496]
[1761540592709,2.15100723,1147.4,1145.6,1.496]
[1761540593815,0.15183743,1147.7,1145.6,1.496]
[1761540598626,0.15183743,1147.7,1145.7,0.55899469]
[1761540598919,0.15183743,1147.7,1145.8,0.55899469]
[1761540599119,0.15183743,1147.7,1145.6,1.496]
[1761540599323,0.15183743,1147.7,1145.7,0.55906167]
[1761540599518,0.15183743,1147.7,1145.8,0.55906167]
[1761540599720,0.15183743,1147.7,1145.6,1.496]
[1761540600024,0.15183743,1147.7,1145.7,0.55906478]
[1761540600218,0.15183743,1147.7,1145.8,0.55906478]
[1761540600423,0.15183743,1147.7,1145.6,1.496]
[1761540600622,0.15183743,1147.7,1145.7,0.55907384]
[1761540600824,0.15183743,1147.7,1145.8,0.55907384]
[1761540601124,0.15183743,1147.7,1145.6,1.496]
[1761540601423,0.15183743,1147.7,1145.7,0.55918298]
[1761540601623,0.15183743,1147.7,1145.6,1.496]
[1761540601821,0.15183743,1147.7,1145.7,0.55919559]
[1761540602119,0.15183743,1147.7,1145.6,1.496]
[1761540602326,2.15100723,1148.6,1145.7,0.55924036]
[1761540602624,0.15183014,1147.2,1145.6,1.496]
[1761540602825,2.15100723,1148.6,1145.7,0.55924036]
[1761540603026,2.15100723,1148.6,1145.6,1.496]
[1761540603226,2.15100723,1148.6,1145.7,0.55924036]
[1761540603423,2.15100723,1148.6,1145.6,1.496]
[1761540603624,2.15100723,1148.6,1145.7,0.55928944]
[1761540603828,2.15100723,1148.6,1145.6,1.496]
[1761540604023,2.15100723,1148.6,1145.7,0.55928944]
[1761540604024,0.15182683,1147.9,1145.7,0.55928944]
[1761540604327,0.15182683,1147.9,1145.6,1.496]
[1761540604525,0.15182683,1147.9,1145.7,0.55935039]
[1761540604722,0.15182683,1147.9,1145.6,1.496]
[1761540604927,0.15182683,1147.9,1145.7,0.55935039]
[1761540605225,0.15182683,1147.9,1145.6,1.496]
[1761540605425,0.15182683,1147.9,1145.7,0.55936895]
[1761540605628,0.15182683,1147.9,1145.6,1.496]
[1761540605824,0.15182683,1147.9,1145.7,0.55936739]
[1761540606027,0.15182683,1147.9,1145.6,1.496]
[1761540606227,0.15182683,1147.9,1145.7,0.55936739]
[1761540606430,0.15182683,1147.9,1145.6,1.496]
[1761540606632,0.15182683,1147.9,1145.7,0.55938347]
[1761540606932,0.15182683,1147.9,1145.6,1.496]
[1761540607129,0.15182683,1147.9,1145.7,0.55938347]
[1761540607327,0.15182683,1147.9,1145.6,1.496]
[1761540607627,0.15182683,1147.9,1145.7,0.55940878]
[1761540607831,0.15182683,1147.9,1145.6,1.496]
[1761540608032,0.15182683,1147.9,1145.7,0.55940326]
[1761540608227,0.15182683,1147.9,1145.6,1.496]
[1761540608427,0.15182683,1147.9,1145.7,0.55943166]
[1761540608632,0.15182683,1147.9,1145.6,1.496]
[1761540608934,0.15182683,1147.9,1145.7,0.55943166]
[1761540609128,0.15182683,1147.9,1145.6,1.496]
[1761540609327,0.15182683,1147.9,1145.7,0.55946153]
[1761540609528,0.15182683,1147.9,1145.6,1.496]
[1761540609728,0.15182683,1147.9,1145.7,0.55946672]
[1761540609931,0.15182683,1147.9,1145.6,1.496]
[1761540610131,0.15182683,1147.9,1145.7,0.55946672]
[1761540610431,0.15182683,1147.9,1145.6,1.496]
[1761540610630,0.15182683,1147.9,1145.7,0.55949258]
[1761540610833,0.15182683,1147.9,1145.6,1.496]
[1761540611032,0.15182683,1147.9,1145.7,0.55949279]
[1761540611231,0.15182683,1147.9,1145.6,1.496]
[1761540611533,0.15182683,1147.9,1145.7,0.55952427]
[1761540611733,0.15182683,1147.9,1145.6,1.496]
[1761540611934,0.15182683,1147.9,1145.7,0.55952427]
[1761540612134,0.15182683,1147.9,1145.6,1.496]
[1761540612335,0.15182683,1147.9,1145.7,0.55956507]
[1761540612634,0.15182683,1147.9,1145.6,1.496]
[1761540612834,0.15182683,1147.9,1145.7,0.55956507]
[1761540613030,0.15182683,1147.9,1145.6,1.496]
[1761540613232,0.15182683,1147.9,1145.7,0.55956507]
[1761540613432,0.15182683,1147.9,1145.6,1.496]
[1761540613636,0.15182683,1147.9,1145.7,0.55960835]
[1761540613936,0.15182683,1147.9,1145.6,1.496]
[1761540614132,0.15182683,1147.9,1145.7,0.55960524]
[1761540614336,0.15182683,1147.9,1145.6,1.496]
[1761540614833,2.30283406,1147.9,1145.6,1.496]
[1761540616041,2.30283406,1147.9,1145.2,0.65267118]
[1761540616239,2.30283406,1147.9,1145.3,0.55960052]
[1761540616538,2.30283406,1147.9,1145.4,0.55960052]
[1761540616737,2.30283406,1147.9,1145.5,0.55960052]
[1761540617038,2.15100723,1147.8,1145.6,0.55960052]
[1761540617239,2.15100723,1147.8,1145.2,0.65267118]
[1761540617438,2.15100723,1147.8,1145.3,0.55961625]
[1761540617635,2.15100723,1147.8,1145.4,0.55961625]
[1761540617839,2.15100723,1147.8,1145.5,0.55961625]
[1761540618039,2.15100723,1147.8,1145.6,0.55961625]
[1761540618236,2.15100723,1147.8,1145.2,0.65267118]
[1761540618435,2.15100723,1147.8,1145.3,0.55962946]
[1761540618641,2.15100723,1147.8,1145.4,1.86062946]
[1761540618837,2.15100723,1147.8,1145.5,0.55962946]
[1761540619140,2.15100723,1147.8,1145.6,0.55962946]
[1761540619340,2.15100723,1147.8,1145.4,1.301]
[1761540619541,2.15100723,1147.8,1145.5,0.55962793]
[1761540619744,2.15100723,1147.8,1145.6,0.55962793]
[1761540619944,2.15100723,1147.8,1145.4,1.301]
[1761540620244,2.15100723,1147.8,1145.5,0.55962793]
[1761540620439,2.15100723,1147.8,1145.6,0.55962793]
[1761540620639,2.15100723,1147.6,1145.4,1.301]
[1761540620844,2.15100723,1147.6,1145.5,0.5596285]
[1761540621044,2.15100723,1147.8,1145.6,0.5596285]
[1761540621244,2.15100723,1147.8,1145.4,1.301]
[1761540621544,0.15182683,1147.9,1145.5,0.55962206]
[1761540621744,0.15182683,1147.9,1145.6,0.55962206]
[1761540621939,0.15182683,1147.9,1145.4,1.301]
[1761540622239,0.15182683,1147.9,1145.5,0.55962206]
[1761540622444,0.15182683,1147.9,1145.4,1.301]
[1761540622445,0.15182683,1147.9,1145.6,0.55962206]
[1761540622747,2.30283406,1147.9,1145.4,1.301]
[1761540622940,2.30283406,1147.9,1145.5,0.55962097]
[1761540623143,2.30283406,1147.9,1145.6,0.55962097]
[1761540623340,2.30283406,1147.9,1145.4,1.301]
[1761540623545,2.30283406,1147.9,1145.5,0.55964092]
[1761540623744,2.30283406,1147.9,1145.6,0.55964092]
[1761540624043,2.30283406,1147.9,1145.4,1.301]
[1761540624239,2.30283406,1147.9,1145.5,0.55964092]
[1761540624447,2.30283406,1147.9,1145.6,0.55964092]
[1761540624645,2.30283406,1147.9,1145.4,1.301]
[1761540624843,2.30283406,1147.9,1145.5,0.55941878]
[1761540625045,2.30283406,1147.9,1145.6,0.55941878]
[1761540625247,2.15100723,1147.8,1145.4,1.301]
[1761540625447,2.15100723,1147.8,1145.5,0.55944438]
[1761540625742,2.30283406,1147.9,1145.6,0.55944438]
[1761540625946,2.30283406,1147.9,1145.4,1.301]
[1761540626146,2.30283406,1147.9,1145.5,0.55944438]
[1761540626346,2.30283406,1147.9,1145.6,0.55944438]
[1761540626642,2.30283406,1147.9,1145.4,1.301]
[1761540626846,2.30283406,1147.9,1145.5,0.5594658]
[1761540627043,2.30283406,1147.9,1145.6,0.5594658]
[1761540627248,2.30283406,1147.9,1145.4,1.301]
[1761540627448,2.30283406,1147.9,1145.5,0.55949744]
[1761540627648,2.30283406,1147.9,1145.6,0.55949744]
[1761540627848,2.30283406,1147.9,1145.4,1.301]
[1761540628047,2.30283406,1147.9,1145.5,0.55949744]
[1761540628248,2.30283406,1147.9,1145.6,0.55949744]
[1761540628449,2.30283406,1147.9,1145.4,1.301]
[1761540628649,2.30283406,1147.9,1145.5,0.55953298]
[1761540628849,2.30283406,1147.9,1145.6,0.55953298]
[1761540629149,2.30283406,1147.9,1145.4,1.301]
[1761540629350,2.30283406,1147.9,1145.5,0.55957311]
[1761540629550,2.30283406,1147.9,1145.6,0.55957311]
[1761540629749,2.30283406,1147.9,1145.4,1.301]
[1761540629947,2.30283406,1147.9,1145.5,0.55957311]
[1761540630147,2.30283406,1147.9,1145.6,0.55957311]
[1761540630352,2.15100723,1147.8,1145.4,1.301]
[1761540630550,2.15100723,1147.8,1145.5,0.55961841]
[1761540630748,2.15100723,1147.8,1145.4,1.301]
[1761540630749,2.15100723,1147.8,1145.6,0.55961841]
[1761540630948,2.15100723,1147.7,1145.4,1.301]
[1761540631152,2.15100723,1147.7,1145.5,0.55961841]
[1761540631452,2.15100723,1147.7,1145.6,0.55961841]
[1761540631652,2.15100723,1147.7,1145.4,1.301]
[1761540631952,2.15100723,1147.7,1145.5,0.55961645]
[1761540632152,2.15100723,1147.7,1145.6,0.55961645]
[1761540632352,2.15100723,1147.7,1145.4,1.301]
[1761540632547,2.15100723,1147.7,1145.5,0.5596145]
[1761540632753,2.15100723,1147.7,1145.6,0.5596145]
[1761540632951,2.15100723,1147.7,1145.4,1.301]
[1761540633152,2.15100723,1147.7,1145.5,0.5596145]
[1761540633453,2.15100723,1147.7,1145.6,0.5596145]
[1761540633754,2.15100723,1147.7,1145.4,1.301]
[1761540633950,2.15100723,1147.7,1145.5,0.55961279]
[1761540634148,2.15100723,1147.7,1145.4,1.301]
[1761540634149,2.15100723,1147.7,1145.6,0.55961279]
[1761540634347,2.15100723,1147.7,1145.4,1.301]
[1761540634550,2.15100723,1147.7,1145.5,0.55960979]
[1761540634749,2.15100723,1147.7,1145.6,0.55960979]
[1761540635051,2.15100723,1147.7,1145.4,1.301]
[1761540635252,2.15100723,1147.7,1145.5,0.55960684]
[1761540635451,2.15100723,1147.7,1145.6,0.55960684]
[1761540635653,2.15100723,1147.7,1145.1,0.65411699]
[1761540635853,2.15100723,1147.7,1145.2,0.55960684]
[1761540636054,2.15100723,1147.7,1145.3,0.55960684]
[1761540636352,2.15100723,1147.6,1145.4,0.55960684]
[1761540636551,2.15100723,1147.6,1145.5,0.55960684]
[1761540636753,2.15100723,1147.5,1145.6,0.55960684]
[1761540636954,2.15100723,1147.5,1145.2,0.65411699]
[1761540637157,2.15100723,1147.5,1145.3,0.55960393]
[1761540637357,2.15100723,1147.5,1145.4,0.55960393]
[1761540637553,2.15100723,1147.5,1145.5,0.55960393]
[1761540637753,2.15100723,1147.5,1145.6,0.55960393]
[1761540637953,2.15100723,1147.5,1145.2,0.65411699]
[1761540638153,2.15100723,1147.5,1145.3,0.55960101]
[1761540638352,2.15100723,1147.6,1145.4,0.55960101]
[1761540638556,2.15100723,1147.6,1145.5,0.55960101]
[1761540638756,2.15100723,1147.6,1145.6,2.13960101]
[1761540639056,2.15100723,1147.6,1145.6,1.58]
[1761540640256,2.15100723,1147.5,1145.6,1.58]
[1761540640957,2.15100723,1147.3,1145.6,1.58]
[1761540641859,2.15100723,1147.6,1145.6,1.58]
[1761540642959,0.15182683,1147.9,1145.6,1.58]
[1761540649863,0.15182683,1147.9,1145.0,0.65411699]
[1761540650064,0.15182683,1147.9,1145.1,0.55968043]
[1761540650261,0.15182683,1147.9,1145.2,0.55968043]
[1761540650460,0.15182683,1147.9,1145.3,0.55968043]
[1761540650660,0.15182683,1147.9,1145.4,0.55968043]
[1761540650864,0.15182683,1147.9,1145.5,0.55968043]
[1761540651164,0.15182683,1147.9,1145.6,0.55968043]
[1761540651364,0.15182683,1147.9,1145.7,0.55968043]
[1761540651665,0.15182683,1147.9,1145.1,0.65411699]
[1761540651865,0.15182683,1147.9,1145.2,0.55978328]
[1761540652164,0.15182683,1147.9,1145.3,0.55978328]
[1761540652362,2.15100723,1147.3,1145.4,0.55978328]
[1761540652562,2.15100723,1147.3,1145.5,0.55978328]
[1761540652765,2.15100723,1147.5,1145.6,0.55978328]
[1761540653064,2.15100723,1147.5,1145.0,0.65411699]
[1761540653265,2.15100723,1147.2,1145.1,0.5599103]
[1761540653464,2.15100723,1147.2,1145.2,0.5599103]
[1761540653660,2.15100723,1147.2,1145.3,0.5599103]
[1761540653864,2.15100723,1147.3,1145.4,0.5599103]
[1761540654063,2.15100723,1147.3,1145.5,1.482]
[1761540659366,0.15182683,1147.9,1145.6,0.55916758]
[1761540659668,0.15182683,1147.9,1145.7,0.55916758]
[1761540659866,0.15182683,1147.9,1145.8,0.55916758]
[1761540660066,0.15182683,1147.9,1145.5,1.482]
[1761540660265,0.15182683,1147.9,1145.6,0.55915582]
[1761540660462,0.15182683,1147.9,1145.7,0.55915582]
[1761540660662,0.15182683,1147.9,1145.5,1.482]
[1761540660663,0.15182683,1147.9,1145.8,0.55915582]
[1761540660867,0.15182683,1147.9,1145.9,0.55915582]
[1761540661070,0.15182683,1147.9,1145.5,1.482]
[1761540661363,0.15182683,1147.9,1145.6,0.55916142]
[1761540661563,0.15182683,1147.9,1145.7,0.55916142]
[1761540661767,0.15182683,1147.9,1145.5,1.482]
[1761540661967,0.15182683,1147.9,1145.6,0.55920224]
[1761540662169,0.15182683,1147.9,1145.7,0.55920224]
[1761540662370,0.15182683,1147.9,1145.5,1.482]
[1761540662570,0.15182683,1147.9,1145.6,0.55920548]
[1761540662865,0.15182683,1147.9,1145.7,0.55920548]
[1761540663066,2.15100723,1147.4,1145.5,1.482]
[1761540663267,2.15100723,1147.4,1145.6,0.55919718]
[1761540663467,2.15100723,1147.4,1145.7,0.55919718]
[1761540663667,2.15100723,1147.4,1145.5,1.482]
[1761540663871,2.15100723,1147.4,1145.6,0.55919211]
[1761540664166,2.15100723,1147.3,1145.7,0.55919211]
[1761540664369,2.15100723,1147.3,1145.5,1.482]
[1761540664567,2.15100723,1147.5,1145.6,0.55917355]
[1761540664767,2.15100723,1147.5,1145.7,0.55917355]
[1761540664971,2.15100723,1147.5,1145.5,1.482]
[1761540665174,2.15100723,1147.5,1145.6,0.55917355]
[1761540665377,2.15100723,1147.5,1145.7,0.55917355]
[1761540665676,2.15100723,1147.5,1145.5,1.482]
[1761540665970,2.15100723,1147.5,1145.6,0.55915402]
[1761540666272,2.15100723,1147.5,1145.7,0.55915402]
[1761540666471,2.15100723,1147.5,1145.5,1.482]
[1761540666674,2.15100723,1147.5,1145.6,0.55913615]
[1761540666873,2.15100723,1147.5,1145.7,0.55913615]
[1761540667071,2.15100723,1147.5,1145.5,1.482]
[1761540667373,2.15100723,1147.5,1145.6,0.55913637]
[1761540667672,2.15100723,1147.5,1145.7,0.55913637]
[1761540667868,2.15100723,1147.5,1145.5,1.482]
[1761540668072,2.15100723,1147.5,1145.6,0.5591184]
[1761540668369,2.15100723,1147.5,1145.5,1.482]
[1761540668370,2.15100723,1147.5,1145.7,0.5591184]
[1761540668575,2.15100723,1147.5,1145.8,0.55906966]
[1761540668871,2.15100723,1147.8,1145.5,1.482]
[1761540669072,2.15100723,1147.8,1145.6,0.55906599]
[1761540669370,2.15100723,1147.8,1145.7,0.55906599]
[1761540669573,2.15100723,1147.8,1145.8,0.55906599]
[1761540669774,2.15100723,1147.8,1145.5,1.482]
[1761540670072,2.15100723,1147.8,1145.6,0.55900767]
[1761540670271,0.15182683,1147.9,1145.7,0.55900767]
[1761540670569,0.15182683,1147.9,1145.8,0.55900767]
[1761540670770,0.15182683,1147.9,1145.5,1.482]
[1761540670771,0.15182683,1147.9,1145.9,0.55900767]
[1761540670970,0.15182683,1147.9,1145.5,1.482]
[1761540671173,0.15182683,1147.9,1145.6,0.55894679]
[1761540671372,0.15182683,1147.9,1145.7,0.55894679]
[1761540671572,0.15182683,1147.9,1145.8,0.55894679]
[1761540671772,0.15182683,1147.9,1145.9,0.55894679]
[1761540672076,0.15182683,1147.9,1146.0,0.55894679]
[1761540672274,0.15182683,1147.9,1145.3,0.65411699]
[1761540672473,0.15182683,1147.9,1145.4,0.5586616]
[1761540672772,0.15182683,1147.9,1145.5,0.5586616]
[1761540672976,0.15182683,1147.9,1145.6,0.5586616]
[1761540673273,0.15182683,1147.9,1145.7,0.5586616]
[1761540673475,2.30283406,1147.9,1145.8,0.5586616]
[1761540673673,2.30283406,1147.9,1145.9,0.5586616]
[1761540673875,2.30283406,1147.9,1145.6,0.65411699]
[1761540674175,2.30283406,1147.9,1145.7,0.55841341]
[1761540674374,2.30283406,1147.9,1145.8,0.55841341]
[1761540674578,2.30283406,1147.9,1145.9,0.55841341]
[1761540674877,2.30283406,1147.9,1145.5,0.65411699]
[1761540675078,0.15182683,1147.9,1145.6,0.55822868]
[1761540675378,0.15182683,1147.9,1145.7,2.06422868]
[1761540675677,0.15182683,1147.9,1145.8,0.55822868]
[1761540677976,0.15182683,1147.9,1145.8,0.55782361]
[1761540678280,2.30283406,1147.9,1145.7,1.506]
[1761540678579,2.15100723,1147.6,1145.7,1.506]
[1761540682782,2.30283406,1147.9,1145.7,1.506]
[1761540683979,2.30283406,1147.9,1145.8,0.55760274]
[1761540684186,2.30283406,1147.9,1145.7,1.506]
[1761540684382,0.15182683,1147.9,1145.8,0.55754889]
[1761540684684,0.15182683,1147.9,1145.7,1.506]
[1761540684885,0.15182683,1147.9,1145.8,0.55766281]
[1761540685085,0.15182683,1147.9,1145.7,1.506]
[1761540685280,0.15182683,1147.9,1145.8,0.55766787]
[1761540685485,0.15182683,1147.9,1145.7,1.506]
[1761540685780,0.15182683,1147.9,1145.8,0.55761916]
[1761540685984,0.15182683,1147.9,1145.7,1.506]
[1761540686183,0.15182683,1147.9,1145.8,0.55761916]
[1761540686481,0.15182683,1147.9,1145.7,1.506]
[1761540686680,0.15182683,1147.9,1145.8,0.55757959]
[1761540686879,0.15182683,1147.9,1145.7,1.506]
[1761540687080,0.15182683,1147.9,1145.8,0.55757959]
[1761540687283,0.15182683,1147.9,1145.7,1.506]
[1761540687484,0.15182683,1147.9,1145.8,0.55754339]
[1761540687683,0.15182683,1147.9,1145.7,1.506]
[1761540687879,2.30283406,1147.9,1145.7,1.506]
[1761540688179,0.15182683,1147.9,1145.8,0.55752571]
[1761540688381,0.15182683,1147.9,1145.9,0.55752571]
[1761540688684,0.15182683,1147.9,1145.7,1.506]
[1761540688883,0.15182683,1147.9,1145.8,0.55739887]
[1761540689081,0.15182683,1147.9,1145.9,0.55739887]
[1761540689278,0.15182683,1147.9,1145.7,1.506]
[1761540689479,0.15182683,1147.9,1145.8,0.55731634]
[1761540689679,0.15182683,1147.9,1145.9,0.55731634]
[1761540689983,0.15182683,1147.9,1145.7,1.506]
[1761540690280,0.15182683,1147.9,1145.8,0.55731602]
[1761540690481,0.15182683,1147.9,1145.7,1.506]
[1761540690685,0.15182683,1147.9,1145.8,0.55724087]
[1761540690885,0.15182683,1147.9,1145.7,1.506]
[1761540691085,0.15182683,1147.9,1145.8,0.55724087]
[1761540691284,0.15182683,1147.9,1145.7,1.506]
[1761540691580,0.15182683,1147.9,1145.8,0.55716748]
[1761540691785,0.15182683,1147.9,1145.7,1.506]
[1761540691981,0.15182683,1147.9,1145.8,0.55716748]